fUSD/lending_fUSD_20251223
["ID","MTS","AMOUNT","RATE_DAILY","PERIOD"]
[399550333,1766478642073,-500.0,0.00016809,2]
[399550334,1766478642084,-500.0,0.00016836,2]
[399550335,1766478642094,-500.0,0.00016836,2]
[399550336,1766478642104,-500.0,0.00016836,2]
[399550337,1766478642114,-500.0,0.00016836,2]
[399550338,1766478642127,-500.0,0.00016836,2]
[399550339,1766478642138,-265.16707175,0.00016836,2]
[399550340,1766478642148,-500.0,0.00016836,2]
[399550341,1766478642159,-500.0,0.00016836,2]
[399550342,1766478642170,-308.19288149,0.00016836,2]
[399550343,1766478642181,-500.0,0.00016836,2]
[399550344,1766478642192,-394.24474848,0.00016836,2]
[399550345,1766478642203,-500.0,0.00016863,2]
[399550346,1766478642214,-500.0,0.00016863,2]
[399550347,1766478642224,-633.0,0.00016863,2]
[399550348,1766478642234,-500.0,0.00016863,2]
[399550349,1766478642244,-500.0,0.00016863,2]
[399550350,1766478642254,-500.0,0.00016863,2]
[399550353,1766478642969,-500.0,0.00016863,2]
[399550354,1766478642998,-336.0,0.00016863,2]
[399550355,1766478643013,-500.0,0.00016891,2]
[399550356,1766478643022,-500.0,0.00016891,2]
[399550357,1766478643031,-500.0,0.00016891,2]
[399550358,1766478643041,-500.0,0.00016891,2]
[399550359,1766478643050,-500.0,0.00016891,2]
[399550360,1766478643059,-453.68455195,0.00016891,2]
[399550361,1766478643068,-168.69,0.000169,2]
[399550362,1766478643077,-315.42176148,0.000169,2]
[399550363,1766478643086,-2198.2114354,0.000169,2]
[399550364,1766478643095,-2937.51660618,0.000169,2]
[399550365,1766478643105,-1308.2970373,0.000169,2]
[399550366,1766478643114,-500.0,0.00016918,2]
[399550367,1766478643123,-500.0,0.00016918,2]
[399550368,1766478643136,-500.0,0.00016918,2]
[399550369,1766478643145,-500.0,0.00016918,2]
[399550370,1766478643154,-500.0,0.00016918,2]
[399550371,1766478643164,-500.0,0.00016946,2]
[399550372,1766478643174,-218.80351721,0.00016946,2]
[399550373,1766478643183,-329.0,0.00016946,2]
[399550374,1766478643192,-500.0,0.00016946,2]
[399550375,1766478643203,-500.0,0.00016946,2]
[399550376,1766478643211,-917.0,0.00016959,2]
[399550377,1766478643220,-160.0,0.00016959,2]
[399550378,1766478643229,-500.0,0.00016973,2]
[399550379,1766478643239,-500.0,0.00016973,2]
[399550380,1766478643247,-500.0,0.00016973,2]
[399550381,1766478643257,-500.0,0.00016973,2]
[399550382,1766478643266,-500.0,0.00016973,2]
[399550383,1766478643275,-500.0,0.00016973,2]
[399550384,1766478643285,-500.0,0.00016973,2]
[399550385,1766478643295,-500.0,0.00016973,2]
[399550386,1766478643304,-214.0,0.00016973,2]
[399550387,1766478643313,-500.0,0.00016973,2]
[399550388,1766478643322,-150.0,0.00016973,2]
[399550389,1766478643331,-600.0,0.00016986,2]
[399550390,1766478643340,-105264.71,0.00016986,2]
[399550391,1766478643349,-698.33268994,0.0001699,2]
[399550392,1766478643359,-698.33268994,0.0001699,2]
[399550393,1766478643368,-3531.7999536,0.00016999,2]
[399550394,1766478643377,-39042.9828028,0.00016999,2]
[399550395,1766478643386,-300.0,0.00016999,2]
[399550396,1766478643395,-192.4032348,0.00016999,2]
[399550397,1766478643404,-268.08998777,0.00016999,2]
[399550398,1766478643413,-500.0,0.00016999,2]
[399550399,1766478643422,-500.0,0.00016999,2]
[399550400,1766478643432,-269.16313566,0.00016999,2]
[399550401,1766478643441,-1242809.60489133,0.00017,2]
[399550402,1766478643450,-679.59601779,0.00017,2]
[399550403,1766478643459,-204.79741281,0.00017,2]
[399550404,1766478643468,-250.0,0.00017,2]
[399550405,1766478643477,-2000.0,0.00017,2]
[399550406,1766478643487,-1608958.58559763,0.00017,2]
[399550409,1766478644827,-202.60993305,0.00014121,2]
[399550410,1766478644836,-946.33941507,0.00014321,2]
[399550411,1766478645028,-53.66058493,0.00014321,2]
[399550412,1766478645037,-236.98339656,0.00014321,2]
[399550413,1766478645048,-448.45149999,0.00014321,2]
[399550415,1766478645856,-314.56510345,0.00014321,2]
[399550416,1766478645866,-1000.0,0.00014321,2]
[399550417,1766478645875,-743.72859403,0.00015356,2]
[399550418,1766478645884,-151.0,0.00015463,2]
[399550419,1766478645893,-743.72859403,0.00015665,2]
[399550420,1766478645902,-15.63677216,0.00017,2]
[399550445,1766479831861,-936.04,0.00013017,2]
[399550446,1766479831870,-250.0,0.00013415,2]
[399550447,1766479831880,-300.0,0.00013812,2]
[399550448,1766479831889,-1200.0,0.00013812,2]
[399550449,1766479831898,-410.26824948,0.00013813,2]
[399550450,1766479831913,-89.73175052,0.00013813,2]
[399550451,1766479831923,-500.0,0.00013813,2]
[399550452,1766479831932,-150.0,0.00013813,2]
[399550453,1766479831942,-500.0,0.00013813,2]
[399550454,1766479831951,-500.0,0.00013813,2]
[399550455,1766479831960,-157.11554878,0.00013813,2]
[399550456,1766479831969,-183.89641434,0.00013813,2]
[399550457,1766479831981,-316.10358566,0.00013813,2]
[399550458,1766479831990,-342.09524482,0.00013813,2]
[399550459,1766479832001,-157.90475518,0.00013813,2]
[399550460,1766479832011,-142.09524482,0.00013813,2]
[399550461,1766479832022,-281.62475332,0.00013813,2]
[399550462,1766479832034,-76.28000186,0.00013813,2]
[399550463,1766479832043,-417.0,0.00013813,2]
[399550464,1766479832053,-150.0,0.00013813,2]
[399550465,1766479832062,-500.0,0.00013813,2]
[399550466,1766479832074,-150.0,0.00013813,2]
[399550467,1766479832083,-500.0,0.00013813,2]
[399550468,1766479832093,-150.0,0.00013813,2]
[399550469,1766479832103,-500.0,0.00013813,2]
[399550470,1766479832112,-199.26999814,0.00013813,2]
[399550471,1766479832123,-638.28000186,0.00013813,2]
[399550472,1766479832133,-90.63648961,0.00013822,2]
[399550475,1766479838026,-199.18607836,0.00013822,2]
[399550476,1766479838036,-154.92265779,0.00013822,2]
[399550495,1766479840561,-602.89250865,0.00013822,2]
[399550496,1766479840573,-229.84460326,0.00013822,2]
[399550497,1766479840582,-191.0768443,0.00013822,2]
[399550498,1766479840592,-1406.546,0.0001383,2]
[399550499,1766479840601,-150.0,0.0001383,2]
[399550500,1766479840610,-162.70210317,0.0001383,2]
[399550501,1766479840619,-500.0,0.0001384,2]
[399550502,1766479840629,-500.0,0.0001384,2]
[399550503,1766479840638,-150.0,0.0001384,2]
[399550504,1766479840648,-500.0,0.0001384,2]
[399550505,1766479840657,-500.0,0.0001384,2]
[399550506,1766479840667,-500.0,0.0001384,2]
[399550507,1766479840676,-500.0,0.0001384,2]
[399550508,1766479840686,-500.0,0.0001384,2]
[399550509,1766479840695,-417.0,0.0001384,2]
[399550510,1766479840703,-500.0,0.0001384,2]
[399550511,1766479840715,-500.0,0.0001384,2]
[399550512,1766479840725,-187.01383122,0.0001384,2]
[399550513,1766479840734,-500.0,0.0001384,2]
[399550514,1766479840744,-220.89163022,0.00013857,2]
[399550515,1766479840753,-500.0,0.00013868,2]
[399550516,1766479840763,-500.0,0.00013868,2]
[399550517,1766479840773,-150.0,0.00013868,2]
[399550518,1766479840782,-500.0,0.00013868,2]
[399550519,1766479840792,-500.0,0.00013868,2]
[399550520,1766479840801,-500.0,0.00013868,2]
[399550521,1766479840810,-500.0,0.00013868,2]
[399550522,1766479840820,-500.0,0.00013868,2]
[399550523,1766479840829,-417.0,0.00013868,2]
[399550524,1766479840839,-500.0,0.00013868,2]
[399550525,1766479840848,-620.76763019,0.00013868,2]
[399550526,1766479840857,-500.0,0.00013868,2]
[399550527,1766479840866,-500.0,0.00013895,2]
[399550528,1766479840876,-150.0,0.00013895,2]
[399550529,1766479840885,-500.0,0.00013895,2]
[399550530,1766479840894,-500.0,0.00013895,2]
[399550531,1766479840903,-500.0,0.00013895,2]
[399550532,1766479840913,-500.0,0.00013895,2]
[399550533,1766479840922,-500.0,0.00013895,2]
[399550534,1766479840932,-417.0,0.00013895,2]
[399550535,1766479840941,-500.0,0.00013895,2]
[399550536,1766479840952,-500.0,0.00013895,2]
[399550537,1766479840963,-150.0,0.00013898,2]
[399550538,1766479840972,-500.0,0.00013899,2]
[399550539,1766479840982,-1000000.0,0.00013913,2]
[399550540,1766479840991,-500.0,0.00013923,2]
[399550541,1766479841000,-240.64119308,0.00013923,2]
[399550542,1766479841012,-500.0,0.00013923,2]
[399550543,1766479841022,-500.0,0.00013923,2]
[399550544,1766479841031,-500.0,0.00013923,2]
[399550545,1766479841040,-500.0,0.00013923,2]
[399550546,1766479841049,-500.0,0.00013923,2]
[399550547,1766479841059,-417.0,0.00013923,2]
[399550548,1766479841070,-500.0,0.00013923,2]
[399550549,1766479841080,-500.0,0.00013923,2]
[399550550,1766479841089,-500.0,0.00013926,2]
[399550551,1766479841099,-500.0,0.0001395,2]
[399550552,1766479841108,-500.0,0.0001395,2]
[399550553,1766479841118,-265.16707175,0.0001395,2]
[399550554,1766479841127,-500.0,0.0001395,2]
[399550555,1766479841137,-500.0,0.0001395,2]
[399550556,1766479841147,-308.19288149,0.0001395,2]
[399550557,1766479841156,-417.0,0.0001395,2]
[399550558,1766479841165,-500.0,0.0001395,2]
[399550559,1766479841175,-394.24474848,0.0001395,2]
[399550560,1766479841184,-740.0,0.00013952,2]
[399550561,1766479841193,-500.0,0.00013954,2]
[399550562,1766479841202,-500.0,0.00013977,2]
[399550563,1766479841212,-500.0,0.00013977,2]
[399550564,1766479841222,-500.0,0.00013977,2]
[399550565,1766479841231,-500.0,0.00013977,2]
[399550566,1766479841240,-417.0,0.00013977,2]
[399550567,1766479841250,-500.0,0.00013977,2]
[399550568,1766479841259,-464.54142088,0.00013981,2]
[399550569,1766479841269,-500.0,0.00014005,2]
[399550570,1766479841278,-500.0,0.00014005,2]
[399550571,1766479841287,-453.68455195,0.00014005,2]
[399550572,1766479841297,-500.0,0.00014005,2]
[399550573,1766479841306,-417.0,0.00014005,2]
[399550574,1766479841315,-630.05295224,0.00014005,2]
[399550575,1766479841325,-282.6661,0.00014013,2]
[399550576,1766479841334,-16482.67953504,0.00014013,2]
[399550577,1766479841343,-2988.27415906,0.00014013,2]
[399550578,1766479841352,-500.0,0.00014032,2]
[399550579,1766479841362,-500.0,0.00014032,2]
[399550580,1766479841371,-500.0,0.00014032,2]
[399550581,1766479841380,-417.0,0.00014032,2]
[399550582,1766479841390,-500.0,0.0001406,2]
[399550583,1766479841401,-500.0,0.0001406,2]
[399550584,1766479841410,-500.0,0.0001406,2]
[399550585,1766479841420,-417.0,0.0001406,2]
[399550586,1766479841429,-500.0,0.0001406,2]
[399550587,1766479841444,-150.0,0.0001406,2]
[399550588,1766479841454,-150.0,0.0001406,2]
[399550589,1766479841463,-646.07478008,0.00014086,2]
[399550590,1766479841473,-500.0,0.00014087,2]
[399550591,1766479841483,-214.0,0.00014087,2]
[399550592,1766479841493,-500.0,0.00014087,2]
[399550593,1766479841503,-417.0,0.00014087,2]
[399550594,1766479841514,-837.55,0.00014087,2]
[399550595,1766479841523,-500.0,0.00014087,2]
[399550596,1766479841533,-257.86837201,0.00014087,2]
[399550597,1766479841542,-267.77127482,0.00014087,2]
[399550598,1766479841551,-500.0,0.00014104,2]
[399550599,1766479841561,-335.26105309,0.00014104,2]
[399550600,1766479841570,-500.0,0.00014104,2]
[399550601,1766479841580,-500.0,0.00014104,2]
[399550602,1766479841589,-500.0,0.00014104,2]
[399550603,1766479841599,-500.0,0.00014104,2]
[399550604,1766479841608,-500.0,0.00014104,2]
[399550605,1766479841617,-500.0,0.00014104,2]
[399550606,1766479841627,-500.0,0.00014104,2]
[399550607,1766479841637,-500.0,0.00014104,2]
[399550608,1766479841646,-500.0,0.00014104,2]
[399550609,1766479841655,-500.0,0.00014104,2]
[399550610,1766479841664,-500.0,0.00014104,2]
[399550611,1766479841673,-500.0,0.00014104,2]
[399550612,1766479841682,-500.0,0.00014104,2]
[399550613,1766479841691,-500.0,0.00014104,2]
[399550614,1766479841701,-500.0,0.00014104,2]
[399550615,1766479841710,-500.0,0.00014104,2]
[399550616,1766479841719,-500.0,0.00014104,2]
[399550617,1766479841729,-529.63919594,0.00014104,2]
[399550618,1766479841738,-500.0,0.00014104,2]
[399550619,1766479841747,-500.0,0.00014104,2]
[399550620,1766479841757,-200.0,0.00014104,2]
[399550621,1766479841766,-200.0,0.00014104,2]
[399550622,1766479841775,-200.0,0.00014104,2]
[399550623,1766479841784,-151.0,0.00014104,2]
[399550624,1766479841793,-151.0,0.00014104,2]
[399550625,1766479841803,-151.0,0.00014104,2]
[399550626,1766479841811,-151.0,0.00014104,2]
[399550627,1766479841820,-151.0,0.00014104,2]
[399550628,1766479841830,-151.0,0.00014104,2]
[399550629,1766479841839,-151.0,0.00014104,2]
[399550630,1766479841848,-151.0,0.00014104,2]
[399550631,1766479841858,-151.0,0.00014104,2]
[399550632,1766479841866,-151.0,0.00014104,2]
[399550633,1766479841875,-151.0,0.00014104,2]
[399550634,1766479841884,-1000.0,0.00014113,2]
[399550635,1766479841893,-500.0,0.00014114,2]
[399550636,1766479841902,-417.0,0.00014114,2]
[399550637,1766479841911,-500.0,0.00014115,2]
[399550638,1766479841920,-633.0,0.00014142,2]
[399550639,1766479841929,-417.0,0.00014142,2]
[399550640,1766479841938,-500.0,0.00014142,2]
[399550641,1766479841947,-417.0,0.00014169,2]
[399550642,1766479841956,-500.0,0.0001417,2]
[399550643,1766479841965,-500.0,0.00014173,2]
[399550644,1766479841974,-500.1214449,0.00014173,2]
[399550645,1766479841983,-500.0,0.00014173,2]
[399550646,1766479841992,-500.0,0.00014173,2]
[399550647,1766479842001,-165.59889929,0.00014173,2]
[399550648,1766479842011,-500.0,0.00014173,2]
[399550649,1766479842020,-500.0,0.00014173,2]
[399550650,1766479842030,-500.12339319,0.00014173,2]
[399550651,1766479842039,-500.0,0.00014173,2]
[399550652,1766479842048,-160.20052694,0.00014173,2]
[399550653,1766479842057,-500.0,0.00014173,2]
[399550654,1766479842066,-500.0,0.00014173,2]
[399550655,1766479842075,-500.0,0.00014173,2]
[399550656,1766479842084,-500.0,0.00014173,2]
[399550657,1766479842094,-500.0,0.00014173,2]
[399550658,1766479842103,-500.2502142,0.00014173,2]
[399550659,1766479842112,-500.8236575,0.00014173,2]
[399550660,1766479842121,-500.0,0.00014173,2]
[399550661,1766479842131,-168.84175508,0.00014173,2]
[399550662,1766479842140,-500.0,0.00014173,2]
[399550663,1766479842149,-500.0,0.00014173,2]
[399550664,1766479842158,-500.0,0.00014173,2]
[399550665,1766479842167,-500.0,0.00014173,2]
[399550666,1766479842177,-500.0,0.00014173,2]
[399550667,1766479842186,-500.08130902,0.00014173,2]
[399550668,1766479842202,-500.23725067,0.00014173,2]
[399550669,1766479842215,-160.29255705,0.00014173,2]
[399550670,1766479842224,-500.82264109,0.00014173,2]
[399550671,1766479842234,-165.37952363,0.00014173,2]
[399550672,1766479842244,-500.57373942,0.00014173,2]
[399550673,1766479842253,-500.52659866,0.00014173,2]
[399550674,1766479842263,-500.0,0.00014173,2]
[399550675,1766479842273,-201.7413727,0.00014173,2]
[399550676,1766479842283,-500.0,0.00014173,2]
[399550677,1766479842292,-165.51567643,0.00014173,2]
[399550678,1766479842303,-417.0,0.00014197,2]
[399550679,1766479842313,-500.0,0.00014197,2]
[399550680,1766479842322,-500.0,0.00014212,2]
[399550681,1766479842331,-417.0,0.00014224,2]
[399550682,1766479842341,-500.0,0.00014224,2]
[399550683,1766479842708,-417.0,0.00014251,2]
[399550685,1766479842718,-500.0,0.00014252,2]
[399550687,1766479842727,-417.0,0.00014279,2]
[399550689,1766479842737,-500.0,0.00014279,2]
[399550690,1766479842747,-417.0,0.00014306,2]
[399550691,1766479842756,-500.0,0.00014307,2]
[399550692,1766479842766,-193.46504883,0.00014319,2]
[399550693,1766479842775,-250.0,0.00014319,2]
[399550694,1766479842784,-250.0,0.00014319,2]
[399550695,1766479842793,-1000.0,0.0001432,2]
[399550697,1766479842802,-1000.0,0.0001432,2]
[399550698,1766479842811,-1000.0,0.0001432,2]
[399550700,1766479842820,-265.838,0.0001432,2]
[399550701,1766479842830,-1000.0,0.0001432,2]
[399550702,1766479842839,-1000.0,0.0001432,2]
[399550703,1766479842848,-1000.0,0.0001432,2]
[399550704,1766479842858,-2000.0,0.00014321,2]
[399550705,1766479842867,-2000.0,0.00014321,2]
[399550707,1766479842876,-2000.0,0.00014321,2]
[399550708,1766479842885,-1973.065,0.00014321,2]
[399550709,1766479842895,-417.0,0.00014334,2]
[399550710,1766479842904,-16482.67953498,0.00014334,2]
[399550711,1766479842913,-2988.27415906,0.00014334,2]
[399550712,1766479842923,-500.0,0.00014334,2]
[399550714,1766479842932,-417.0,0.00014361,2]
[399550716,1766479842942,-837.55,0.00014361,2]
[399550718,1766479842952,-417.0,0.00014388,2]
[399550719,1766479842962,-417.0,0.00014416,2]
[399550720,1766479842971,-438.25840165,0.00014443,2]
[399550721,1766479842980,-13312.4,0.00014521,2]
[399550722,1766479842990,-837.55,0.00014635,2]
[399550723,1766479843000,-482.93311736,0.00014648,2]
[399550724,1766479843009,-500.0,0.00014652,2]
[399550726,1766479843023,-201.61297217,0.00014652,2]
[399550728,1766479843033,-200.0,0.00014652,2]
[399550730,1766479843042,-16482.67953498,0.00014655,2]
[399550732,1766479843052,-2988.27415906,0.00014655,2]
[399550734,1766479843062,-1000.0,0.00014721,2]
[399550736,1766479843071,-500.0,0.00014721,2]
[399550738,1766479843080,-216.53235299,0.00014721,2]
[399550740,1766479843090,-500.0,0.00014721,2]
[399550741,1766479843100,-500.0,0.00014721,2]
[399550742,1766479843110,-500.0,0.00014721,2]
[399550743,1766479843120,-385.4280122,0.00014721,2]
[399550744,1766479843129,-1000.0,0.00014721,2]
[399550745,1766479843139,-837.55,0.00014909,2]
[399550746,1766479843147,-1475.42051789,0.00014965,2]
[399550747,1766479843157,-16482.67953498,0.00014975,2]
[399550748,1766479843166,-2988.27415906,0.00014975,2]
[399550749,1766479843175,-200.0,0.00015021,2]
[399550750,1766479843185,-255.0,0.00015024,2]
[399550751,1766479843194,-379.65,0.00015068,2]
[399550752,1766479843204,-420.0,0.00015135,2]
[399550753,1766479843213,-151.0,0.00015137,2]
[399550754,1766479843223,-837.55,0.00015183,2]
[399550755,1766479843232,-1680.0,0.00015193,2]
[399550756,1766479843241,-200.0,0.000152,2]
[399550757,1766479843251,-2500.0,0.00015213,2]
[399550758,1766479843260,-600.0,0.00015213,2]
[399550759,1766479843270,-300.0,0.00015213,2]
[399550760,1766479843279,-300.0,0.00015213,2]
[399550761,1766479843288,-609.34995974,0.00015268,2]
[399550762,1766479843298,-1476.24710438,0.00015268,2]
[399550763,1766479843308,-150.0,0.00015288,2]
[399550764,1766479843317,-150.0,0.00015288,2]
[399550765,1766479843327,-150.0,0.00015288,2]
[399550766,1766479843336,-150.0,0.00015288,2]
[399550767,1766479843345,-150.0,0.00015288,2]
[399550768,1766479843355,-150.0,0.00015288,2]
[399550769,1766479843364,-150.0,0.00015288,2]
[399550770,1766479843373,-150.0,0.00015288,2]
[399550771,1766479843383,-150.0,0.00015288,2]
[399550772,1766479843392,-150.0,0.00015288,2]
[399550773,1766479843405,-155.72966081,0.00015288,2]
[399550774,1766479843415,-16482.67953498,0.00015296,2]
[399550775,1766479843425,-2988.27415906,0.00015296,2]
[399550776,1766479843435,-150.0,0.00015316,2]
[399550777,1766479843447,-150.0,0.00015323,2]
[399550778,1766479843457,-150.0,0.00015344,2]
[399550779,1766479843467,-150.0,0.00015345,2]
[399550780,1766479843476,-150.0,0.00015348,2]
[399550781,1766479843486,-150.0,0.00015358,2]
[399550782,1766479843496,-150.0,0.00015374,2]
[399550783,1766479843506,-150.0,0.00015394,2]
[399550784,1766479843518,-150.0,0.00015401,2]
[399550785,1766479843527,-150.0,0.00015403,2]
[399550786,1766479843537,-150.0,0.00015409,2]
[399550787,1766479843546,-150.0,0.00015429,2]
[399550788,1766479843556,-150.0,0.00015432,2]
[399550789,1766479843566,-837.55,0.00015457,2]
[399550790,1766479843575,-150.0,0.00015458,2]
[399550791,1766479843585,-150.0,0.0001546,2]
[399550792,1766479843594,-150.0,0.00015465,2]
[399550794,1766479843607,-150.0,0.0001547,2]
[399550796,1766479843617,-150.0,0.00015476,2]
[399550797,1766479843627,-150.0,0.00015489,2]
[399550798,1766479843637,-150.0,0.000155,2]
[399550799,1766479843647,-150.0,0.000155,2]
[399550800,1766479843657,-150.0,0.00015514,2]
[399550801,1766479843667,-150.0,0.00015518,2]
[399550802,1766479843676,-150.0,0.0001553,2]
[399550803,1766479843686,-150.0,0.0001553,2]
[399550804,1766479843695,-150.0,0.00015535,2]
[399550805,1766479843706,-150.0,0.00015547,2]
[399550806,1766479843715,-150.0,0.00015571,2]
[399550807,1766479843724,-150.0,0.00015571,2]
[399550808,1766479843734,-150.0,0.00015576,2]
[399550809,1766479843743,-150.0,0.00015591,2]
[399550810,1766479843754,-150.0,0.00015604,2]
[399550811,1766479843765,-150.0,0.00015606,2]
[399550812,1766479843775,-16482.67953498,0.00015617,2]
[399550813,1766479843785,-2988.27415906,0.00015617,2]
[399550814,1766479843799,-150.0,0.00015627,2]
[399550815,1766479843808,-150.0,0.00015627,2]
[399550816,1766479843819,-150.0,0.00015633,2]
[399550817,1766479843829,-150.0,0.00015642,2]
[399550818,1766479843839,-150.0,0.00015652,2]
[399550819,1766479843848,-150.0,0.00015662,2]
[399550820,1766479843863,-150.0,0.00015665,2]
[399550821,1766479843872,-150.0,0.00015677,2]
[399550822,1766479843883,-150.0,0.00015684,2]
[399550823,1766479843892,-150.0,0.00015691,2]
[399550824,1766479843903,-150.0,0.00015712,2]
[399550825,1766479843912,-150.0,0.00015712,2]
[399550826,1766479843921,-150.0,0.00015712,2]
[399550827,1766479843931,-150.0,0.0001572,2]
[399550828,1766479843942,-837.55,0.00015731,2]
[399550829,1766479843952,-150.0,0.00015741,2]
[399550830,1766479843961,-150.0,0.00015748,2]
[399550831,1766479843970,-200.0,0.00015748,2]
[399550832,1766479843980,-150.0,0.00015748,2]
[399550833,1766479843989,-150.0,0.00015773,2]
[399550834,1766479844001,-150.0,0.00015773,2]
[399550835,1766479844010,-150.0,0.00015777,2]
[399550836,1766479844020,-150.0,0.00015783,2]
[399550837,1766479844031,-150.0,0.00015797,2]
[399550838,1766479844040,-150.0,0.00015806,2]
[399550839,1766479844049,-150.0,0.00015818,2]
[399550840,1766479844059,-150.0,0.00015834,2]
[399550841,1766479844069,-150.0,0.00015835,2]
[399550842,1766479844078,-150.0,0.00015854,2]
[399550843,1766479844087,-150.0,0.00015854,2]
[399550844,1766479844097,-150.0,0.00015854,2]
[399550845,1766479844106,-150.0,0.00015863,2]
[399550846,1766479844116,-150.0,0.00015889,2]
[399550847,1766479844126,-715.0,0.0001589,2]
[399550848,1766479844135,-150.0,0.00015892,2]
[399550849,1766479844148,-150.0,0.00015894,2]
[399550850,1766479844158,-150.0,0.00015911,2]
[399550851,1766479844167,-150.0,0.00015921,2]
[399550852,1766479844177,-150.0,0.00015925,2]
[399550853,1766479844186,-150.0,0.00015925,2]
[399550854,1766479844196,-237.9,0.00015926,2]
[399550855,1766479844205,-16482.67953498,0.00015938,2]
[399550856,1766479844214,-2988.27415906,0.00015938,2]
[399550857,1766479844224,-150.0,0.0001595,2]
[399550858,1766479844234,-150.0,0.00015955,2]
[399550859,1766479844244,-150.0,0.0001596,2]
[399550860,1766479844253,-150.0,0.00015967,2]
[399550861,1766479844263,-150.0,0.00015967,2]
[399550862,1766479844274,-150.0,0.00015979,2]
[399550863,1766479844284,-150.0,0.00015995,2]
[399550864,1766479844295,-837.55,0.00016005,2]
[399550865,1766479844305,-11905.0,0.00016007,2]
[399550866,1766479844314,-150.0,0.00016007,2]
[399550867,1766479844325,-150.0,0.00016016,2]
[399550868,1766479844335,-150.0,0.00016016,2]
[399550869,1766479844344,-150.0,0.00016024,2]
[399550870,1766479844354,-150.0,0.00016031,2]
[399550871,1766479844363,-150.0,0.00016036,2]
[399550872,1766479844372,-150.0,0.00016043,2]
[399550873,1766479844391,-150.0,0.00016065,2]
[399550874,1766479844402,-150.0,0.00016066,2]
[399550875,1766479844413,-150.0,0.00016076,2]
[399550876,1766479844422,-150.0,0.0001608,2]
[399550877,1766479844432,-150.0,0.00016094,2]
[399550878,1766479844446,-150.0,0.00016102,2]
[399550879,1766479844456,-150.0,0.00016123,2]
[399550880,1766479844466,-150.0,0.00016137,2]
[399550881,1766479844478,-150.0,0.00016137,2]
[399550882,1766479844489,-150.0,0.00016137,2]
[399550883,1766479844499,-150.0,0.00016137,2]
[399550884,1766479844511,-150.0,0.00016137,2]
[399550885,1766479844522,-150.0,0.00016151,2]
[399550886,1766479844532,-150.0,0.00016172,2]
[399550887,1766479844542,-150.0,0.0001618,2]
[399550888,1766479844551,-150.0,0.00016194,2]
[399550889,1766479844562,-150.0,0.00016198,2]
[399550890,1766479844572,-150.0,0.00016208,2]
[399550891,1766479844582,-150.0,0.00016209,2]
[399550892,1766479844591,-150.0,0.00016231,2]
[399550893,1766479844602,-150.0,0.00016238,2]
[399550894,1766479844612,-150.0,0.00016243,2]
[399550895,1766479844621,-433.0,0.00016247,2]
[399550896,1766479844631,-150.0,0.0001625,2]
[399550897,1766479844641,-150.0,0.00016258,2]
[399550898,1766479844651,-150.0,0.00016258,2]
[399550899,1766479844661,-16482.67953498,0.00016258,2]
[399550900,1766479844670,-2988.27415906,0.00016258,2]